[Event "Titled Tuesday Blitz June 1 2021"]
[White "Abdusattorov, Nodirbek"]
[Black "Ibrahimli, Murad"]
[WhiteFideId "14204118"]
[BlackFideId "13410229"]
[WhiteElo "2662"]
[BlackElo "2109"]
[Result "1-0"]
[Round "09"]
[TimeControl "180+1"]
[Date "2021.06.01"]
[WhiteClock "0:00:11"]
[BlackClock "0:00:05"]

1. c4 {[%clk 0:02:58]}  Nf6 {[%clk 0:02:59]} 2. g3 {[%clk 0:02:57]}  g6 {[%clk 0:02:59]} 3. Bg2 {[%clk 0:02:58]}  Bg7 {[%clk 0:02:59]} 4. Nc3 {[%clk 0:02:58]}  O-O {[%clk 0:03:00]} 5. d4 {[%clk 0:02:59]}  d6 {[%clk 0:02:59]} 6. Nf3 {[%clk 0:02:59]}  Nbd7 {[%clk 0:02:58]} 7. O-O {[%clk 0:02:59]}  e5 {[%clk 0:02:59]} 8. e4 {[%clk 0:02:59]}  a6 {[%clk 0:02:55]} 9. b3 {[%clk 0:02:58]}  Rb8 {[%clk 0:02:52]} 10. dxe5 {[%clk 0:02:52]}  dxe5 {[%clk 0:02:50]} 11. Ba3 {[%clk 0:02:52]}  Re8 {[%clk 0:02:50]} 12. Qe2 {[%clk 0:02:50]}  b5 {[%clk 0:02:45]} 13. Nd5 {[%clk 0:02:41]}  c6 {[%clk 0:02:29]} 14. Nxf6+ {[%clk 0:02:38]}  Qxf6 {[%clk 0:02:28]} 15. Rad1 {[%clk 0:02:35]}  b4 {[%clk 0:02:28]} 16. Bc1 {[%clk 0:02:35]}  Bf8 {[%clk 0:02:19]} 17. Bh3 {[%clk 0:02:21]}  Nc5 {[%clk 0:02:06]} 18. Bg5 {[%clk 0:02:18]}  Qg7 {[%clk 0:02:06]} 19. Bxc8 {[%clk 0:02:16]}  Rbxc8 {[%clk 0:02:07]} 20. Qc2 {[%clk 0:01:50]}  f6 {[%clk 0:02:07]} 21. Be3 {[%clk 0:01:50]}  Red8 {[%clk 0:02:01]} 22. Kg2 {[%clk 0:01:46]}  Qf7 {[%clk 0:01:53]} 23. h4 {[%clk 0:01:45]}  h5 {[%clk 0:01:52]} 24. Ng1 {[%clk 0:01:34]}  Qe6 {[%clk 0:01:52]} 25. Ne2 {[%clk 0:01:34]}  a5 {[%clk 0:01:46]} 26. f3 {[%clk 0:01:33]}  Be7 {[%clk 0:01:33]} 27. Ng1 {[%clk 0:01:32]}  Ra8 {[%clk 0:01:20]} 28. Nh3 {[%clk 0:01:30]}  Rxd1 {[%clk 0:01:17]} 29. Rxd1 {[%clk 0:01:29]}  a4 {[%clk 0:01:15]} 30. Nf2 {[%clk 0:01:25]}  axb3 {[%clk 0:01:14]} 31. axb3 {[%clk 0:01:26]}  Ra3 {[%clk 0:00:54]} 32. Bxc5 {[%clk 0:01:26]}  Bxc5 {[%clk 0:00:54]} 33. Nd3 {[%clk 0:01:27]}  Be7 {[%clk 0:00:50]} 34. Rd2 {[%clk 0:01:26]}  Kf7 {[%clk 0:00:48]} 35. Qd1 {[%clk 0:01:26]}  Ra7 {[%clk 0:00:33]} 36. Qe2 {[%clk 0:01:24]}  Ke8 {[%clk 0:00:32]} 37. f4 {[%clk 0:01:25]}  Rd7 {[%clk 0:00:29]} 38. f5 {[%clk 0:01:24]}  Qf7 {[%clk 0:00:30]} 39. fxg6 {[%clk 0:01:21]}  Qxg6 {[%clk 0:00:31]} 40. Nf2 {[%clk 0:01:19]}  Ra7 {[%clk 0:00:25]} 41. Qf3 {[%clk 0:01:16]}  Ra3 {[%clk 0:00:24]} 42. Kh3 {[%clk 0:01:14]}  Bc5 {[%clk 0:00:20]} 43. Qd1 {[%clk 0:01:10]}  Bd4 {[%clk 0:00:20]} 44. Qf3 {[%clk 0:01:02]}  Ke7 {[%clk 0:00:20]} 45. Nd1 {[%clk 0:01:02]}  Qf7 {[%clk 0:00:20]} 46. Ne3 {[%clk 0:01:02]}  c5 {[%clk 0:00:11]} 47. Nd5+ {[%clk 0:01:00]}  Kf8 {[%clk 0:00:10]} 48. Nxf6 {[%clk 0:01:00]}  Qe6+ {[%clk 0:00:09]} 49. Kg2 {[%clk 0:00:59]}  Ke7 {[%clk 0:00:09]} 50. Nd5+ {[%clk 0:00:59]}  Kd7 {[%clk 0:00:09]} 51. Qxh5 {[%clk 0:00:55]}  Rxb3 {[%clk 0:00:09]} 52. Qh7+ {[%clk 0:00:56]}  Kd8 {[%clk 0:00:09]} 53. Qh8+ {[%clk 0:00:54]}  Kd7 {[%clk 0:00:09]} 54. Qg7+ {[%clk 0:00:55]}  Kd8 {[%clk 0:00:09]} 55. h5 {[%clk 0:00:55]}  Rb1 {[%clk 0:00:02]} 56. Qf8+ {[%clk 0:00:39]}  Kd7 {[%clk 0:00:03]} 57. Qg7+ {[%clk 0:00:38]}  Kd8 {[%clk 0:00:03]} 58. Qg5+ {[%clk 0:00:27]}  Kd7 {[%clk 0:00:03]} 59. Qf5 {[%clk 0:00:27]}  Qxf5 {[%clk 0:00:03]} 60. exf5 {[%clk 0:00:28]}  Ke8 {[%clk 0:00:02]} 61. h6 {[%clk 0:00:28]}  Kf7 {[%clk 0:00:03]} 62. f6 {[%clk 0:00:27]}  Ra1 {[%clk 0:00:02]} 63. h7 {[%clk 0:00:27]}  Ra8 {[%clk 0:00:03]} 64. Kf3 {[%clk 0:00:27]}  Rh8 {[%clk 0:00:03]} 65. Ra2 {[%clk 0:00:25]}  Rxh7 {[%clk 0:00:04]} 66. Ke4 {[%clk 0:00:25]}  Kg6 {[%clk 0:00:03]} 67. Ra6 {[%clk 0:00:24]}  b3 {[%clk 0:00:03]} 68. Ne7+ {[%clk 0:00:24]}  Kg5 {[%clk 0:00:03]} 69. Rb6 {[%clk 0:00:23]}  b2 {[%clk 0:00:03]} 70. Nd5 {[%clk 0:00:22]}  Rf7 {[%clk 0:00:02]} 71. Rb8 {[%clk 0:00:20]}  Kg4 {[%clk 0:00:02]} 72. Rg8+ {[%clk 0:00:19]}  Kh3 {[%clk 0:00:03]} 73. Rb8 {[%clk 0:00:17]}  Kg4 {[%clk 0:00:03]} 74. Rb3 {[%clk 0:00:16]}  Kg5 {[%clk 0:00:02]} 75. Rb6 {[%clk 0:00:16]}  Kg4 {[%clk 0:00:03]} 76. Rb8 {[%clk 0:00:15]}  Kh3 {[%clk 0:00:03]} 77. Kf5 {[%clk 0:00:14]}  Kxg3 {[%clk 0:00:03]} 78. Ke6 {[%clk 0:00:14]}  Rf8 {[%clk 0:00:03]} 79. Rxf8 {[%clk 0:00:11]}  b1=Q {[%clk 0:00:02]} 80. Rg8+ {[%clk 0:00:12]}  Kf3 {[%clk 0:00:02]} 81. f7 {[%clk 0:00:12]}  Qb7 {[%clk 0:00:01]} 82. f8=Q+ {[%clk 0:00:13]}  Ke2 {[%clk 0:00:01]} 83. Rg2+ {[%clk 0:00:13]}  Kd3 {[%clk 0:00:01]} 84. Qf3+ {[%clk 0:00:08]}  Kxc4 {[%clk 0:00:02]} 85. Ne3+ {[%clk 0:00:08]}  Kd3 {[%clk 0:00:02]} 86. Qxb7 {[%clk 0:00:09]}  e4 {[%clk 0:00:02]} 87. Qd5 {[%clk 0:00:09]}  Kxe3 {[%clk 0:00:03]} 88. Rg4 {[%clk 0:00:09]}  Kf3 {[%clk 0:00:03]} 89. Qxe4+ {[%clk 0:00:10]}  Kf2 {[%clk 0:00:04]} 90. Rg2+ {[%clk 0:00:11]}  Kf1 {[%clk 0:00:05]} 91. Qe2# {[%clk 0:00:11]} 1-0


[Site "https://www.chess.com"]

[Event "Titled Tuesday Blitz June 1 2021"]
[White "Alavi, Sayed Javad"]
[Black "Iniyan, P"]
[WhiteFideId "12500607"]
[BlackFideId "25002767"]
[WhiteElo "2495"]
[BlackElo "2400"]
[Result "1-0"]
[Round "09"]
[TimeControl "180+1"]
[Date "2021.06.01"]
[WhiteClock "0:00:07"]
[BlackClock "0:00:10"]

1. e4 {[%clk 0:03:00]}  c5 {[%clk 0:02:56]} 2. Nc3 {[%clk 0:02:59]}  a6 {[%clk 0:02:56]} 3. g3 {[%clk 0:02:58]}  b5 {[%clk 0:02:55]} 4. Bg2 {[%clk 0:02:59]}  Bb7 {[%clk 0:02:56]} 5. Nge2 {[%clk 0:02:58]}  e6 {[%clk 0:02:56]} 6. O-O {[%clk 0:02:55]}  Nf6 {[%clk 0:02:57]} 7. d4 {[%clk 0:02:54]}  b4 {[%clk 0:02:56]} 8. Na4 {[%clk 0:02:54]}  c4 {[%clk 0:02:51]} 9. d5 {[%clk 0:02:41]}  d6 {[%clk 0:02:49]} 10. dxe6 {[%clk 0:02:35]}  fxe6 {[%clk 0:02:48]} 11. Nd4 {[%clk 0:02:33]}  Kf7 {[%clk 0:02:38]} 12. e5 {[%clk 0:01:49]}  Bxg2 {[%clk 0:02:36]} 13. exf6 {[%clk 0:01:49]}  Bxf1 {[%clk 0:02:34]} 14. fxg7 {[%clk 0:01:48]}  Bxg7 {[%clk 0:02:27]} 15. Qh5+ {[%clk 0:01:46]}  Kg8 {[%clk 0:02:02]} 16. Nxe6 {[%clk 0:01:43]}  Qd7 {[%clk 0:02:01]} 17. Qf5 {[%clk 0:01:00]}  Qxa4 {[%clk 0:01:17]} 18. Nxg7 {[%clk 0:00:59]}  Qd7 {[%clk 0:01:13]} 19. Ne6 {[%clk 0:00:56]}  Nc6 {[%clk 0:01:04]} 20. Kxf1 {[%clk 0:00:37]}  Re8 {[%clk 0:00:53]} 21. Qg4+ {[%clk 0:00:26]}  Kf7 {[%clk 0:00:53]} 22. Ng5+ {[%clk 0:00:26]}  Ke7 {[%clk 0:00:52]} 23. Qh4 {[%clk 0:00:27]}  Qf5 {[%clk 0:00:32]} 24. Bf4 {[%clk 0:00:27]}  Kd7 {[%clk 0:00:32]} 25. Rd1 {[%clk 0:00:27]}  Ne5 {[%clk 0:00:31]} 26. Qh6 {[%clk 0:00:20]}  Qg6 {[%clk 0:00:28]} 27. Qxg6 {[%clk 0:00:20]}  Nxg6 {[%clk 0:00:18]} 28. Rxd6+ {[%clk 0:00:19]}  Kc8 {[%clk 0:00:19]} 29. Be3 {[%clk 0:00:19]}  a5 {[%clk 0:00:17]} 30. Ra6 {[%clk 0:00:19]}  Kb7 {[%clk 0:00:17]} 31. Ra7+ {[%clk 0:00:17]}  Kc6 {[%clk 0:00:16]} 32. Rxa5 {[%clk 0:00:18]}  Ra8 {[%clk 0:00:17]} 33. Rc5+ {[%clk 0:00:18]}  Kd7 {[%clk 0:00:17]} 34. Rxc4 {[%clk 0:00:18]}  Rxa2 {[%clk 0:00:18]} 35. Rxb4 {[%clk 0:00:19]}  Rc8 {[%clk 0:00:18]} 36. c3 {[%clk 0:00:18]}  Ne5 {[%clk 0:00:18]} 37. Rb7+ {[%clk 0:00:15]}  Kc6 {[%clk 0:00:18]} 38. Rxh7 {[%clk 0:00:14]}  Rxb2 {[%clk 0:00:17]} 39. h3 {[%clk 0:00:11]}  Ra8 {[%clk 0:00:17]} 40. Kg2 {[%clk 0:00:10]}  Nc4 {[%clk 0:00:16]} 41. Bd4 {[%clk 0:00:09]}  Ra1 {[%clk 0:00:16]} 42. Rh6+ {[%clk 0:00:09]}  Kd5 {[%clk 0:00:16]} 43. Rh5 {[%clk 0:00:09]}  Kc6 {[%clk 0:00:15]} 44. Ne4 {[%clk 0:00:08]}  Re2 {[%clk 0:00:11]} 45. Rc5+ {[%clk 0:00:07]}  Kb7 {[%clk 0:00:11]} 46. Rxc4 {[%clk 0:00:07]}  Rxe4 {[%clk 0:00:12]} 47. h4 {[%clk 0:00:07]}  Ra5 {[%clk 0:00:10]} 48. Rc5 {[%clk 0:00:06]}  Ra6 {[%clk 0:00:09]} 49. h5 {[%clk 0:00:05]}  Re1 {[%clk 0:00:08]} 50. Rg5 {[%clk 0:00:06]}  Raa1 {[%clk 0:00:07]} 51. Be3 {[%clk 0:00:05]}  Rg1+ {[%clk 0:00:07]} 52. Kf3 {[%clk 0:00:05]}  Rh1 {[%clk 0:00:08]} 53. Rg7+ {[%clk 0:00:05]}  Kc6 {[%clk 0:00:08]} 54. h6 {[%clk 0:00:06]}  Ra3 {[%clk 0:00:08]} 55. Rg6+ {[%clk 0:00:06]}  Kd5 {[%clk 0:00:08]} 56. Bd4 {[%clk 0:00:06]}  Rd1 {[%clk 0:00:07]} 57. Kg4 {[%clk 0:00:06]}  Rh1 {[%clk 0:00:06]} 58. f4 {[%clk 0:00:05]}  Ra2 {[%clk 0:00:03]} 59. Kf5 {[%clk 0:00:05]}  Rg2 {[%clk 0:00:03]} 60. g4 {[%clk 0:00:05]}  Rf1 {[%clk 0:00:03]} 61. g5 {[%clk 0:00:05]}  Rh2 {[%clk 0:00:02]} 62. Rg7 {[%clk 0:00:04]}  Rh4 {[%clk 0:00:03]} 63. Be5 {[%clk 0:00:04]}  Kc4 {[%clk 0:00:03]} 64. Rc7+ {[%clk 0:00:04]}  Kd3 {[%clk 0:00:03]} 65. h7 {[%clk 0:00:04]}  Rfh1 {[%clk 0:00:02]} 66. h8=Q {[%clk 0:00:04]}  Rxh8 {[%clk 0:00:03]} 67. Bxh8 {[%clk 0:00:04]}  Rxh8 {[%clk 0:00:04]} 68. g6 {[%clk 0:00:04]}  Rc8 {[%clk 0:00:04]} 69. Rxc8 {[%clk 0:00:03]}  Ke3 {[%clk 0:00:04]} 70. g7 {[%clk 0:00:04]}  Kf3 {[%clk 0:00:04]} 71. g8=Q {[%clk 0:00:04]}  Ke2 {[%clk 0:00:05]} 72. Qg5 {[%clk 0:00:04]}  Kd3 {[%clk 0:00:06]} 73. Qh4 {[%clk 0:00:05]}  Kc2 {[%clk 0:00:07]} 74. Qg3 {[%clk 0:00:06]}  Kb3 {[%clk 0:00:08]} 75. c4+ {[%clk 0:00:06]}  Kb4 {[%clk 0:00:09]} 76. Qe3 {[%clk 0:00:05]}  Ka5 {[%clk 0:00:09]} 77. Qc1 {[%clk 0:00:06]}  Kb6 {[%clk 0:00:09]} 78. Qb2+ {[%clk 0:00:07]}  Ka7 {[%clk 0:00:10]} 79. Rc6 {[%clk 0:00:07]}  Ka8 {[%clk 0:00:10]} 80. Ra6# {[%clk 0:00:07]} 1-0


[Site "https://www.chess.com"]

[Event "Titled Tuesday Blitz June 1 2021"]
[White "Dobrov, Vladimir"]
[Black "Quintin Navarro, Alberto"]
[WhiteFideId "4136594"]
[BlackFideId "2292688"]
[WhiteElo "2614"]
[BlackElo "2289"]
[Result "1-0"]
[Round "09"]
[TimeControl "180+1"]
[Date "2021.06.01"]
[WhiteClock "0:00:20"]
[BlackClock "0:00:14"]

1. b3 {[%clk 0:02:50]}  d5 {[%clk 0:02:56]} 2. Bb2 {[%clk 0:02:49]}  Bg4 {[%clk 0:02:56]} 3. f3 {[%clk 0:02:48]}  Bh5 {[%clk 0:02:56]} 4. Nh3 {[%clk 0:02:48]}  f6 {[%clk 0:02:55]} 5. d4 {[%clk 0:02:47]}  e6 {[%clk 0:02:53]} 6. e4 {[%clk 0:02:43]}  dxe4 {[%clk 0:02:46]} 7. Nf4 {[%clk 0:02:43]}  Bf7 {[%clk 0:02:46]} 8. fxe4 {[%clk 0:02:43]}  Bd6 {[%clk 0:02:39]} 9. e5 {[%clk 0:02:13]}  fxe5 {[%clk 0:02:36]} 10. dxe5 {[%clk 0:02:13]}  Bb4+ {[%clk 0:02:36]} 11. Nc3 {[%clk 0:01:58]}  Nc6 {[%clk 0:02:28]} 12. Bb5 {[%clk 0:01:47]}  Ne7 {[%clk 0:02:22]} 13. O-O {[%clk 0:01:38]}  O-O {[%clk 0:02:19]} 14. Ne4 {[%clk 0:01:37]}  Qxd1 {[%clk 0:02:05]} 15. Raxd1 {[%clk 0:01:36]}  Rad8 {[%clk 0:01:59]} 16. Ng5 {[%clk 0:01:27]}  Bc5+ {[%clk 0:01:54]} 17. Kh1 {[%clk 0:01:27]}  Bd4 {[%clk 0:01:41]} 18. Nfxe6 {[%clk 0:00:44]}  Bxe6 {[%clk 0:01:33]} 19. Nxe6 {[%clk 0:00:43]}  Bxb2 {[%clk 0:00:55]} 20. Nxd8 {[%clk 0:00:39]}  Rxf1+ {[%clk 0:00:36]} 21. Rxf1 {[%clk 0:00:33]}  Nxe5 {[%clk 0:00:36]} 22. Ne6 {[%clk 0:00:29]}  h5 {[%clk 0:00:34]} 23. Nxc7 {[%clk 0:00:26]}  h4 {[%clk 0:00:29]} 24. Be2 {[%clk 0:00:25]}  g5 {[%clk 0:00:28]} 25. h3 {[%clk 0:00:25]}  N7g6 {[%clk 0:00:28]} 26. Nd5 {[%clk 0:00:25]}  Kg7 {[%clk 0:00:28]} 27. Bh5 {[%clk 0:00:25]}  Nf8 {[%clk 0:00:23]} 28. Rf5 {[%clk 0:00:22]}  Ne6 {[%clk 0:00:20]} 29. Bg4 {[%clk 0:00:22]}  Nxg4 {[%clk 0:00:19]} 30. hxg4 {[%clk 0:00:22]}  Kg6 {[%clk 0:00:19]} 31. Ne7+ {[%clk 0:00:20]}  Kg7 {[%clk 0:00:19]} 32. Kh2 {[%clk 0:00:20]}  Ba3 {[%clk 0:00:17]} 33. Nd5 {[%clk 0:00:20]}  Bd6+ {[%clk 0:00:18]} 34. Kg1 {[%clk 0:00:20]}  Bf4 {[%clk 0:00:15]} 35. c3 {[%clk 0:00:21]}  Nc5 {[%clk 0:00:13]} 36. Nxf4 {[%clk 0:00:20]}  gxf4 {[%clk 0:00:14]} 37. Rxc5 {[%clk 0:00:20]} 1-0


[Site "https://www.chess.com"]

[Event "Titled Tuesday Blitz June 1 2021"]
[White "Hansen, Eric"]
[Black "Can, Emre"]
[WhiteFideId "2606771"]
[BlackFideId "6302181"]
[WhiteElo "2568"]
[BlackElo "2503"]
[Result "0-1"]
[Round "09"]
[TimeControl "180+1"]
[Date "2021.06.01"]
[WhiteClock "0:00:01"]
[BlackClock "0:00:16"]

1. e4 {[%clk 0:02:59]}  c5 {[%clk 0:03:00]} 2. Nf3 {[%clk 0:02:59]}  d6 {[%clk 0:03:00]} 3. Bb5+ {[%clk 0:02:58]}  Bd7 {[%clk 0:03:01]} 4. Bxd7+ {[%clk 0:02:58]}  Qxd7 {[%clk 0:03:02]} 5. c4 {[%clk 0:02:58]}  Nf6 {[%clk 0:03:03]} 6. Nc3 {[%clk 0:02:58]}  g6 {[%clk 0:03:03]} 7. d4 {[%clk 0:02:55]}  cxd4 {[%clk 0:03:04]} 8. Nxd4 {[%clk 0:02:56]}  Bg7 {[%clk 0:03:04]} 9. f3 {[%clk 0:02:57]}  O-O {[%clk 0:03:03]} 10. Be3 {[%clk 0:02:58]}  Nc6 {[%clk 0:03:03]} 11. Nde2 {[%clk 0:02:56]}  a6 {[%clk 0:03:03]} 12. a4 {[%clk 0:02:56]}  e6 {[%clk 0:02:51]} 13. O-O {[%clk 0:02:56]}  Rfd8 {[%clk 0:02:46]} 14. Kh1 {[%clk 0:02:54]}  d5 {[%clk 0:02:46]} 15. cxd5 {[%clk 0:02:50]}  exd5 {[%clk 0:02:46]} 16. Bb6 {[%clk 0:02:51]}  Re8 {[%clk 0:02:46]} 17. exd5 {[%clk 0:02:42]}  Nb4 {[%clk 0:02:46]} 18. Qb3 {[%clk 0:02:42]}  Nbxd5 {[%clk 0:02:38]} 19. Rad1 {[%clk 0:02:41]}  Qe6 {[%clk 0:02:12]} 20. Nxd5 {[%clk 0:02:27]}  Nxd5 {[%clk 0:02:13]} 21. Rxd5 {[%clk 0:02:17]}  Qxe2 {[%clk 0:02:12]} 22. Rb1 {[%clk 0:02:18]}  Rac8 {[%clk 0:01:51]} 23. Rd7 {[%clk 0:02:12]}  Re6 {[%clk 0:01:44]} 24. a5 {[%clk 0:02:01]}  h5 {[%clk 0:01:37]} 25. Rg1 {[%clk 0:01:42]}  h4 {[%clk 0:01:30]} 26. h3 {[%clk 0:00:38]}  Bxb2 {[%clk 0:01:29]} 27. Rxb7 {[%clk 0:00:32]}  Be5 {[%clk 0:01:22]} 28. Qd1 {[%clk 0:00:28]}  Qc4 {[%clk 0:01:07]} 29. Qd7 {[%clk 0:00:22]}  Rd6 {[%clk 0:01:05]} 30. Qg4 {[%clk 0:00:16]}  Qxg4 {[%clk 0:01:05]} 31. fxg4 {[%clk 0:00:16]}  Rc2 {[%clk 0:01:03]} 32. Ra7 {[%clk 0:00:14]}  Rd3 {[%clk 0:01:03]} 33. Re1 {[%clk 0:00:08]}  Bg3 {[%clk 0:00:57]} 34. Rf1 {[%clk 0:00:07]}  f6 {[%clk 0:00:46]} 35. Rxa6 {[%clk 0:00:05]}  Rdd2 {[%clk 0:00:39]} 36. Ra8+ {[%clk 0:00:05]}  Kf7 {[%clk 0:00:37]} 37. Ra7+ {[%clk 0:00:04]}  Ke6 {[%clk 0:00:36]} 38. Ra6 {[%clk 0:00:04]}  Rc6 {[%clk 0:00:20]} 39. Ra8 {[%clk 0:00:04]}  Rcc2 {[%clk 0:00:19]} 40. Ra6 {[%clk 0:00:01]}  Rc6 {[%clk 0:00:18]} 41. Ra8 {[%clk 0:00:02]}  Ra2 {[%clk 0:00:18]} 42. Re8+ {[%clk 0:00:01]}  Kf7 {[%clk 0:00:18]} 43. Re3 {[%clk 0:00:02]}  Rcc2 {[%clk 0:00:17]} 44. Rd3 {[%clk 0:00:01]}  Be5 {[%clk 0:00:17]} 45. Bg1 {[%clk 0:00:01]}  Rxa5 {[%clk 0:00:16]} 46. Re3 {[%clk 0:00:01]}  Ke6 {[%clk 0:00:16]} 0-1


[Site "https://www.chess.com"]

[Event "Titled Tuesday Blitz June 1 2021"]
[White "Indjic, Aleksandar"]
[Black "Nesterov, Arseniy"]
[WhiteFideId "911925"]
[BlackFideId "24198455"]
[WhiteElo "2643"]
[BlackElo "2441"]
[Result "1/2-1/2"]
[Round "09"]
[TimeControl "180+1"]
[Date "2021.06.01"]
[WhiteClock "0:00:11"]
[BlackClock "0:00:07"]

1. d4 {[%clk 0:03:00]}  d5 {[%clk 0:02:59]} 2. Nf3 {[%clk 0:03:01]}  Nf6 {[%clk 0:02:59]} 3. Bf4 {[%clk 0:03:01]}  Bf5 {[%clk 0:02:59]} 4. e3 {[%clk 0:02:58]}  e6 {[%clk 0:02:59]} 5. c4 {[%clk 0:02:59]}  Bxb1 {[%clk 0:02:59]} 6. Qxb1 {[%clk 0:02:59]}  Bb4+ {[%clk 0:02:59]} 7. Kd1 {[%clk 0:02:58]}  Bd6 {[%clk 0:02:59]} 8. Bg3 {[%clk 0:02:54]}  O-O {[%clk 0:02:58]} 9. cxd5 {[%clk 0:02:53]}  exd5 {[%clk 0:02:57]} 10. Bd3 {[%clk 0:02:53]}  c6 {[%clk 0:02:52]} 11. Ke2 {[%clk 0:02:52]}  Re8 {[%clk 0:02:51]} 12. Qc2 {[%clk 0:02:51]}  a5 {[%clk 0:02:49]} 13. a3 {[%clk 0:02:51]}  Na6 {[%clk 0:02:49]} 14. Bh4 {[%clk 0:02:48]}  h6 {[%clk 0:02:43]} 15. Rac1 {[%clk 0:02:47]}  Nc7 {[%clk 0:02:43]} 16. Bf5 {[%clk 0:02:30]}  Be7 {[%clk 0:02:38]} 17. Ne5 {[%clk 0:02:28]}  Ne4 {[%clk 0:02:25]} 18. Bg3 {[%clk 0:01:47]}  Bd6 {[%clk 0:02:17]} 19. Bxe4 {[%clk 0:01:47]}  dxe4 {[%clk 0:02:17]} 20. Nc4 {[%clk 0:01:47]}  Bxg3 {[%clk 0:02:10]} 21. hxg3 {[%clk 0:01:47]}  Nd5 {[%clk 0:02:10]} 22. Rh4 {[%clk 0:01:47]}  Nf6 {[%clk 0:02:04]} 23. Nd2 {[%clk 0:01:46]}  Qd5 {[%clk 0:02:03]} 24. Qb3 {[%clk 0:01:46]}  a4 {[%clk 0:01:53]} 25. Qxd5 {[%clk 0:01:44]}  cxd5 {[%clk 0:01:53]} 26. Rc7 {[%clk 0:01:44]}  Rec8 {[%clk 0:01:47]} 27. Rxc8+ {[%clk 0:01:18]}  Rxc8 {[%clk 0:01:46]} 28. Rh1 {[%clk 0:01:18]}  b5 {[%clk 0:01:13]} 29. Kd1 {[%clk 0:01:17]}  Ng4 {[%clk 0:00:58]} 30. Rf1 {[%clk 0:01:17]}  Nh2 {[%clk 0:00:58]} 31. Re1 {[%clk 0:01:17]}  Ng4 {[%clk 0:00:56]} 32. Re2 {[%clk 0:01:18]}  f5 {[%clk 0:00:54]} 33. Nb1 {[%clk 0:01:17]}  Nf6 {[%clk 0:00:50]} 34. Nc3 {[%clk 0:01:17]}  Rb8 {[%clk 0:00:50]} 35. Rc2 {[%clk 0:01:18]}  b4 {[%clk 0:00:46]} 36. axb4 {[%clk 0:00:29]}  Rxb4 {[%clk 0:00:47]} 37. Ke2 {[%clk 0:00:27]}  Kf7 {[%clk 0:00:43]} 38. Nd1 {[%clk 0:00:27]}  Kg6 {[%clk 0:00:30]} 39. Rc6 {[%clk 0:00:25]}  Kg5 {[%clk 0:00:24]} 40. Ra6 {[%clk 0:00:22]}  h5 {[%clk 0:00:19]} 41. f3 {[%clk 0:00:22]}  h4 {[%clk 0:00:10]} 42. gxh4+ {[%clk 0:00:23]}  Kxh4 {[%clk 0:00:10]} 43. Kf2 {[%clk 0:00:23]}  f4 {[%clk 0:00:08]} 44. Ra7 {[%clk 0:00:17]}  fxe3+ {[%clk 0:00:06]} 45. Kxe3 {[%clk 0:00:17]}  Rb3+ {[%clk 0:00:07]} 46. Kf2 {[%clk 0:00:17]}  Rd3 {[%clk 0:00:05]} 47. Ne3 {[%clk 0:00:16]}  Rd2+ {[%clk 0:00:04]} 48. Kg1 {[%clk 0:00:16]}  Rxb2 {[%clk 0:00:03]} 49. Rxg7 {[%clk 0:00:15]}  exf3 {[%clk 0:00:04]} 50. gxf3 {[%clk 0:00:15]}  Nh5 {[%clk 0:00:03]} 51. Nf5+ {[%clk 0:00:14]}  Kh3 {[%clk 0:00:04]} 52. Rh7 {[%clk 0:00:14]}  Rg2+ {[%clk 0:00:04]} 53. Kf1 {[%clk 0:00:14]}  Rg5 {[%clk 0:00:04]} 54. Ng7 {[%clk 0:00:12]}  Rxg7 {[%clk 0:00:04]} 55. Rxh5+ {[%clk 0:00:12]}  Kg3 {[%clk 0:00:05]} 56. Rxd5 {[%clk 0:00:12]}  Ra7 {[%clk 0:00:04]} 57. Rc5 {[%clk 0:00:09]}  a3 {[%clk 0:00:05]} 58. Rc1 {[%clk 0:00:09]}  a2 {[%clk 0:00:05]} 59. Ra1 {[%clk 0:00:09]}  Kxf3 {[%clk 0:00:06]} 60. d5 {[%clk 0:00:10]}  Ke3 {[%clk 0:00:06]} 61. d6 {[%clk 0:00:10]}  Kd3 {[%clk 0:00:06]} 62. d7 {[%clk 0:00:10]}  Rxd7 {[%clk 0:00:06]} 63. Rxa2 {[%clk 0:00:11]}  Rd4 {[%clk 0:00:07]} 64. Rf2 {[%clk 0:00:11]}  Ke3 {[%clk 0:00:07]} 1/2-1/2


[Site "https://www.chess.com"]

[Event "Titled Tuesday Blitz June 1 2021"]
[White "Lamaze, Simon"]
[Black "Murzin, Volodar"]
[WhiteFideId "36069264"]
[BlackFideId "44155573"]
[WhiteElo "1938"]
[BlackElo "2541"]
[Result "1-0"]
[Round "09"]
[TimeControl "180+1"]
[Date "2021.06.01"]
[WhiteClock "0:00:19"]
[BlackClock "0:00:10"]

1. d4 {[%clk 0:03:00]}  Nf6 {[%clk 0:02:56]} 2. c4 {[%clk 0:03:00]}  e6 {[%clk 0:02:55]} 3. g3 {[%clk 0:03:00]}  d5 {[%clk 0:02:51]} 4. Nf3 {[%clk 0:03:00]}  dxc4 {[%clk 0:02:49]} 5. Bg2 {[%clk 0:02:59]}  Nc6 {[%clk 0:02:49]} 6. Qa4 {[%clk 0:02:53]}  Bb4+ {[%clk 0:02:48]} 7. Bd2 {[%clk 0:02:53]}  Bxd2+ {[%clk 0:02:40]} 8. Nbxd2 {[%clk 0:02:49]}  O-O {[%clk 0:02:32]} 9. Qxc4 {[%clk 0:02:47]}  Qd5 {[%clk 0:02:23]} 10. O-O {[%clk 0:02:42]}  Rd8 {[%clk 0:02:18]} 11. e3 {[%clk 0:02:37]}  Bd7 {[%clk 0:02:07]} 12. Qe2 {[%clk 0:02:26]}  Qh5 {[%clk 0:01:58]} 13. Rfe1 {[%clk 0:01:43]}  e5 {[%clk 0:01:48]} 14. Nxe5 {[%clk 0:01:35]}  Nxe5 {[%clk 0:01:44]} 15. Qxh5 {[%clk 0:01:34]}  Nxh5 {[%clk 0:01:45]} 16. dxe5 {[%clk 0:01:34]}  g6 {[%clk 0:01:38]} 17. f4 {[%clk 0:01:30]}  c6 {[%clk 0:01:10]} 18. Rac1 {[%clk 0:01:24]}  Be6 {[%clk 0:01:08]} 19. Red1 {[%clk 0:01:07]}  Bxa2 {[%clk 0:01:02]} 20. b3 {[%clk 0:01:07]}  Rd3 {[%clk 0:01:02]} 21. Bf1 {[%clk 0:01:00]}  Rxe3 {[%clk 0:00:43]} 22. Kf2 {[%clk 0:00:59]}  Rxb3 {[%clk 0:00:43]} 23. Nxb3 {[%clk 0:00:56]}  Bxb3 {[%clk 0:00:44]} 24. Rd7 {[%clk 0:00:56]}  b6 {[%clk 0:00:36]} 25. Bg2 {[%clk 0:00:34]}  Ng7 {[%clk 0:00:34]} 26. Rxc6 {[%clk 0:00:29]}  Rb8 {[%clk 0:00:22]} 27. Rcc7 {[%clk 0:00:23]}  a5 {[%clk 0:00:16]} 28. Bd5 {[%clk 0:00:18]}  Bxd5 {[%clk 0:00:13]} 29. Rxd5 {[%clk 0:00:19]}  Ne6 {[%clk 0:00:13]} 30. Ra7 {[%clk 0:00:19]}  Nc5 {[%clk 0:00:12]} 31. Rd6 {[%clk 0:00:18]}  Ne4+ {[%clk 0:00:10]} 32. Ke3 {[%clk 0:00:18]}  Nxd6 {[%clk 0:00:10]} 33. exd6 {[%clk 0:00:19]} 1-0


[Site "https://www.chess.com"]